{"text_format":"1","workbook":"xlsx","n_sheets":9,"sheets":["созд. гипсылок в ОТКРЫТОМ ДОКЕ ","Лист1","Категории","01_Все товары","02_Овощи","все","03_Фрукты","04_Орехи","05_Грибы"],"not_rendered":{"charts":0,"images":0,"macros":1,"external_links":1,"defined_names":7,"comments":0,"pivot_tables":0},"unopened":[],"bounds":{"document_bytes":16777216,"sheet_cells":100000,"rows_first":2000,"rows_last":500,"rows_between":2000,"halvings":0,"cell_chars":16384,"cell_head_chars":4096},"cells_cut":0,"cells_raw":0,"read":"whole","date_system":"1900"}

{"sheet":"созд. гипсылок в ОТКРЫТОМ ДОКЕ ","index":0,"n_rows":13,"n_cols":5,"rows_kept":13,"cut":false,"hidden":false,"merged":[[0,4,1,4]]}
[null,null,null,null,"для копирования и вставки как значения, потом пережмякать по всем ячейкам)))(зайти в ячейку - ПОСТАВИТЬ КУРСОР ДВОЙНЫМ НАЖАТИЕМ, нажть ентр)"]
[]
[null,"НАЗВАНИЕ ЛИСТА","ЯЧЕЙКА НА КОТОРУ. ССЫЛАТЬСЯ","НАЗВАНИЕ, ЗНАЧЕК ГИПЕРССЫЛКИ ","ФОРМУЛА ДЛЯ КОПИРОВАНИЯ"]
[null,"04_Орехи","B2","Грецкий",{"$f":"CONCATENATE(\"=\",\"ГИПЕРССЫЛКА(\",\"\"\"\",\"#\",B4,\"!\",C4,\"\"\"\",\";\",\"\"\"\",D4,\"\"\"\",\")\")","v":"=ГИПЕРССЫЛКА(\"#04_Орехи!B2\";\"Грецкий\")"}]
[null,"04_Орехи","B3","Фундук","=ГИПЕРССЫЛКА(\"#04_Орехи!B3\";\"Фундук\")"]
[null,"04_Орехи","B4","Арахис","=ГИПЕРССЫЛКА(\"#04_Орехи!B4\";\"Арахис\")"]
[null,"04_Орехи","B5","Кедровый","=ГИПЕРССЫЛКА(\"#04_Орехи!B5\";\"Кедровый\")"]
[null,"04_Орехи","B6","Кокос","=ГИПЕРССЫЛКА(\"#04_Орехи!B6\";\"Кокос\")"]
[null,"04_Орехи","B2","►►","=ГИПЕРССЫЛКА(\"#04_Орехи!B2\";\"►►\")"]
[null,"04_Орехи","B3","►►","=ГИПЕРССЫЛКА(\"#04_Орехи!B3\";\"►►\")"]
[null,"04_Орехи","B4","►►","=ГИПЕРССЫЛКА(\"#04_Орехи!B4\";\"►►\")"]
[null,"04_Орехи","B5","►►","=ГИПЕРССЫЛКА(\"#04_Орехи!B5\";\"►►\")"]
[null,"04_Орехи","B6","►►","=ГИПЕРССЫЛКА(\"#04_Орехи!B6\";\"►►\")"]

{"sheet":"Лист1","index":1,"n_rows":0,"n_cols":0,"rows_kept":0,"cut":false,"hidden":false,"merged":[]}

{"sheet":"Категории","index":2,"n_rows":5,"n_cols":2,"rows_kept":5,"cut":false,"hidden":false,"merged":[]}
["Все товары","Количество товаров"]
["Овощи"]
["Фрукты"]
["Орехи"]
["Грибы"]

{"sheet":"01_Все товары","index":3,"n_rows":21,"n_cols":13,"rows_kept":21,"cut":false,"hidden":false,"merged":[[0,5,0,11]]}
["ID","Наименование товара","Ссылка",null,null,"для группировки формул",null,null,null,null,null,null,"для копирования и вставки как значения (вставлено в столбец Е), потом пережмякать по всем ячейкам)))(зайти в ячейку нажть ентр)"]
[1,"Арахис",{"$f":"HYPERLINK(\"#04_Орехи!b4\",\"►►\")","v":"►►"},null,{"$f":"HYPERLINK(\"#04_Орехи!b2\",\"Грецкий\")","v":"Грецкий"},"ГИПЕРССЫЛКА(\"#","04_Орехи","!","b2","\";\"","►►","\")",{"$f":"CONCATENATE(\"=\",F2,G2,H2,I2,J2,K2,L2)","v":"=ГИПЕРССЫЛКА(\"#04_Орехи!b2\";\"►►\")"}]
[2,"Белый гриб",{"$f":"HYPERLINK(\"#05_Грибы!b2\",\"►►\")","v":"►►"},null,{"$f":"HYPERLINK(\"#04_Орехи!b3\",\"Фундук\")","v":"Фундук"},"ГИПЕРССЫЛКА(\"#","04_Орехи","!","b3","\";\"","►►","\")","=ГИПЕРССЫЛКА(\"#04_Орехи!b3\";\"►►\")"]
[3,"Вёшенка лимонная",{"$f":"HYPERLINK(\"#05_Грибы!b6\",\"►►\")","v":"►►"},null,{"$f":"HYPERLINK(\"#04_Орехи!b4\",\"Арахис\")","v":"Арахис"},"ГИПЕРССЫЛКА(\"#","04_Орехи","!","b4","\";\"","►►","\")","=ГИПЕРССЫЛКА(\"#04_Орехи!b4\";\"►►\")"]
[4,"Грецкий",{"$f":"HYPERLINK(\"#04_Орехи!b2\",\"►►\")","v":"►►"},null,{"$f":"HYPERLINK(\"#04_Орехи!b5\",\"Кедровый\")","v":"Кедровый"},"ГИПЕРССЫЛКА(\"#","04_Орехи","!","b5","\";\"","►►","\")","=ГИПЕРССЫЛКА(\"#04_Орехи!b5\";\"►►\")"]
[5,"Груша",{"$f":"HYPERLINK(\"#03_Фрукты!b2\",\"►►\")","v":"►►"},null,{"$f":"HYPERLINK(\"#04_Орехи!b6\",\"Кокос\")","v":"Кокос"},"ГИПЕРССЫЛКА(\"#","04_Орехи","!","b6","\";\"","►►","\")","=ГИПЕРССЫЛКА(\"#04_Орехи!b6\";\"►►\")"]
[6,"Капуста белокочанная",{"$f":"HYPERLINK(\"#02_Овощи!b2\",\"►►\")","v":"►►"},null,{"$f":"HYPERLINK(\"#02_Овощи!b2\",\"Капуста белокочанная\")","v":"Капуста белокочанная"},"ГИПЕРССЫЛКА(\"#","02_Овощи","!","b2","\";\"","►►","\")","=ГИПЕРССЫЛКА(\"#02_Овощи!b2\";\"►►\")"]
[7,"Картофель",{"$f":"HYPERLINK(\"#02_Овощи!b6\",\"►►\")","v":"►►"},null,{"$f":"HYPERLINK(\"#02_Овощи!b3\",\"Лук репчатый\")","v":"Лук репчатый"},"ГИПЕРССЫЛКА(\"#","02_Овощи","!","b3","\";\"","►►","\")","=ГИПЕРССЫЛКА(\"#02_Овощи!b3\";\"►►\")"]
[8,"Кедровый",{"$f":"HYPERLINK(\"#04_Орехи!b5\",\"►►\")","v":"►►"},null,{"$f":"HYPERLINK(\"#02_Овощи!b4\",\"Чеснок\")","v":"Чеснок"},"ГИПЕРССЫЛКА(\"#","02_Овощи","!","b4","\";\"","►►","\")","=ГИПЕРССЫЛКА(\"#02_Овощи!b4\";\"►►\")"]
[9,"Кокос",{"$f":"HYPERLINK(\"#04_Орехи!b6\",\"►►\")","v":"►►"},null,{"$f":"HYPERLINK(\"#02_Овощи!b5\",\"Морковь\")","v":"Морковь"},"ГИПЕРССЫЛКА(\"#","02_Овощи","!","b5","\";\"","►►","\")","=ГИПЕРССЫЛКА(\"#02_Овощи!b5\";\"►►\")"]
[10,"Лисичка обыкновенная",{"$f":"HYPERLINK(\"#05_Грибы!b3\",\"►►\")","v":"►►"},null,{"$f":"HYPERLINK(\"#02_Овощи!b6\",\"Картофель\")","v":"Картофель"},"ГИПЕРССЫЛКА(\"#","02_Овощи","!","b6","\";\"","►►","\")","=ГИПЕРССЫЛКА(\"#02_Овощи!b6\";\"►►\")"]
[11,"Лук репчатый",{"$f":"HYPERLINK(\"#02_Овощи!b3\",\"►►\")","v":"►►"},null,{"$f":"HYPERLINK(\"#03_Фрукты!b2\",\"Груша\")","v":"Груша"},"ГИПЕРССЫЛКА(\"#","03_Фрукты","!","b2","\";\"","►►","\")","=ГИПЕРССЫЛКА(\"#03_Фрукты!b2\";\"►►\")"]
[12,"Мандарин",{"$f":"HYPERLINK(\"#03_Фрукты!b5\",\"►►\")","v":"►►"},null,{"$f":"HYPERLINK(\"#03_Фрукты!b3\",\"Персик\")","v":"Персик"},"ГИПЕРССЫЛКА(\"#","03_Фрукты","!","b3","\";\"","►►","\")","=ГИПЕРССЫЛКА(\"#03_Фрукты!b3\";\"►►\")"]
[13,"Маслёнок белый",{"$f":"HYPERLINK(\"#05_Грибы!b5\",\"►►\")","v":"►►"},null,{"$f":"HYPERLINK(\"#03_Фрукты!b4\",\"Тернослива\")","v":"Тернослива"},"ГИПЕРССЫЛКА(\"#","03_Фрукты","!","b4","\";\"","►►","\")","=ГИПЕРССЫЛКА(\"#03_Фрукты!b4\";\"►►\")"]
[14,"Морковь",{"$f":"HYPERLINK(\"#02_Овощи!b5\",\"►►\")","v":"►►"},null,{"$f":"HYPERLINK(\"#03_Фрукты!b5\",\"Мандарин\")","v":"Мандарин"},"ГИПЕРССЫЛКА(\"#","03_Фрукты","!","b5","\";\"","►►","\")","=ГИПЕРССЫЛКА(\"#03_Фрукты!b5\";\"►►\")"]
[15,"Персик",{"$f":"HYPERLINK(\"#03_Фрукты!b3\",\"►►\")","v":"►►"},null,{"$f":"HYPERLINK(\"#03_Фрукты!b6\",\"Яблоко\")","v":"Яблоко"},"ГИПЕРССЫЛКА(\"#","03_Фрукты","!","b6","\";\"","►►","\")","=ГИПЕРССЫЛКА(\"#03_Фрукты!b6\";\"►►\")"]
[16,"Тернослива",{"$f":"HYPERLINK(\"#03_Фрукты!b4\",\"►►\")","v":"►►"},null,{"$f":"HYPERLINK(\"#05_Грибы!b2\",\"Белый гриб\")","v":"Белый гриб"},"ГИПЕРССЫЛКА(\"#","05_Грибы","!","b2","\";\"","►►","\")","=ГИПЕРССЫЛКА(\"#05_Грибы!b2\";\"►►\")"]
[17,"Трюфель чёрный",{"$f":"HYPERLINK(\"#05_Грибы!b4\",\"►►\")","v":"►►"},null,{"$f":"HYPERLINK(\"#05_Грибы!b3\",\"Лисичка обыкновенная\")","v":"Лисичка обыкновенная"},"ГИПЕРССЫЛКА(\"#","05_Грибы","!","b3","\";\"","►►","\")","=ГИПЕРССЫЛКА(\"#05_Грибы!b3\";\"►►\")"]
[18,"Фундук",{"$f":"HYPERLINK(\"#04_Орехи!b3\",\"►►\")","v":"►►"},null,{"$f":"HYPERLINK(\"#05_Грибы!b4\",\"Трюфель чёрный\")","v":"Трюфель чёрный"},"ГИПЕРССЫЛКА(\"#","05_Грибы","!","b4","\";\"","►►","\")","=ГИПЕРССЫЛКА(\"#05_Грибы!b4\";\"►►\")"]
[19,"Чеснок",{"$f":"HYPERLINK(\"#02_Овощи!b4\",\"►►\")","v":"►►"},null,{"$f":"HYPERLINK(\"#05_Грибы!b5\",\"Маслёнок белый\")","v":"Маслёнок белый"},"ГИПЕРССЫЛКА(\"#","05_Грибы","!","b5","\";\"","►►","\")","=ГИПЕРССЫЛКА(\"#05_Грибы!b5\";\"►►\")"]
[20,"Яблоко",{"$f":"HYPERLINK(\"#03_Фрукты!b6\",\"►►\")","v":"►►"},null,{"$f":"HYPERLINK(\"#05_Грибы!b6\",\"Вёшенка лимонная\")","v":"Вёшенка лимонная"},"ГИПЕРССЫЛКА(\"#","05_Грибы","!","b6","\";\"","►►","\")","=ГИПЕРССЫЛКА(\"#05_Грибы!b6\";\"►►\")"]

{"sheet":"02_Овощи","index":4,"n_rows":8,"n_cols":3,"rows_kept":8,"cut":false,"hidden":false,"merged":[]}
["ID","Наименование товара","Описание"]
[1,"Капуста белокочанная","Описание 1"]
[2,"Лук репчатый","Описание 2"]
[3,"Чеснок","Описание 3"]
[4,"Морковь","Описание 4"]
[5,"Картофель","Описание 5"]
[]
[null,"01_Все товары'!A1"]

{"sheet":"все","index":5,"n_rows":1,"n_cols":7,"rows_kept":1,"cut":false,"hidden":false,"merged":[]}
[null,null,null,null,null,null,"после кнопки нажать на соседний лист и вернуться на лист \"все\""]

{"sheet":"03_Фрукты","index":6,"n_rows":8,"n_cols":3,"rows_kept":8,"cut":false,"hidden":false,"merged":[]}
["ID","Наименование товара","Описание"]
[1,"Груша","Описание 6"]
[2,"Персик","Описание 7"]
[3,"Тернослива","Описание 8"]
[4,"Мандарин","Описание 9"]
[5,"Яблоко","Описание 10"]
[]
[null,"01_Все товары'!A1"]

{"sheet":"04_Орехи","index":7,"n_rows":8,"n_cols":7,"rows_kept":8,"cut":false,"hidden":false,"merged":[]}
["ID","Наименование товара","Описание"]
[1,"Грецкий","Описание 11",null,null,{"$f":"ABS","v":"Грецкий"},{"$f":"ROW(F2)","v":2}]
[2,"Фундук","Описание 12",null,null,{"$f":"Таблица04[[#This Row],[Наименование товара]]","v":"Фундук"},{"$f":"ROW(F3)","v":3}]
[3,"Арахис","Описание 13",null,null,{"$f":"Таблица04[[#This Row],[Наименование товара]]","v":"Арахис"},4]
[4,"Кедровый","Описание 14",null,null,{"$f":"Таблица04[[#This Row],[Наименование товара]]","v":"Кедровый"},5]
[5,"Кокос","Описание 15",null,null,{"$f":"Таблица04[[#This Row],[Наименование товара]]","v":"Кокос"},6]
[]
[null,"01_Все товары'!A1"]

{"sheet":"05_Грибы","index":8,"n_rows":8,"n_cols":3,"rows_kept":8,"cut":false,"hidden":false,"merged":[]}
["ID","Наименование товара","Описание"]
[1,"Белый гриб","Описание 16"]
[2,"Лисичка обыкновенная","Описание 17"]
[3,"Трюфель чёрный","Описание 18"]
[4,"Маслёнок белый","Описание 19"]
[5,"Вёшенка лимонная","Описание 20"]
[]
[null,"01_Все товары'!A1"]